[Event "3rd Memorial Warakomska 2019"]
[Site "Suwalki"]
[Date "2019.08.10"]
[Round "7.13"]
[White "Warakomski, Tomasz"]
[Black "Molenda, Marcin"]
[Result "1-0"]
[ECO "A05"]
[WhiteElo "2497"]
[BlackElo "2387"]
[Annotator "ChessBase"]
[PlyCount "69"]
[EventDate "2019.08.05"]
[EventType "swiss"]
[EventCountry "POL"]
[SourceTitle "playchess.com"]
[Source "ChessBase"]
[SourceQuality "1"]
[TimeControl "40/5400+30:1800+30"]

1. Nf3 {[%emt 0:00:28]} Nf6 {[%emt 0:00:00]} 2. g3 {[%emt 0:00:06]} g6 {[%emt 0:01:08]} 3. Bg2 {[%emt 0:00:06]} Bg7 {[%emt 0:00:05]} 4. O-O {[%emt 0:00:05]} O-O {[%emt 0:00:07]} 5. c4 {[%emt 0:03:56]} d5 {[%emt 0:02:29]} 6. d4 {[%emt 0:05:32]} Nc6 {[%emt 0:00:53]} 7. cxd5 {[%emt 0:02:54]} Nxd5 {[%emt 0:00:08]} 8. e4 {[%emt 0:01:15]} Nb6 {[%emt 0:00:08]} 9. d5 {[%emt 0:02:10]} Na5 {[%emt 0:00:07]} 10. Nc3 {[%emt 0:12:23]} c6 {[%emt 0:01:08]} 11. Nd4 {[%emt 0:03:42]} e5 {[%emt 0:07:34]} 12. Nde2 {[%emt 0:03:59]} cxd5 {[%emt 0:01:11]} 13. exd5 {[%emt 0:00:17]} Nac4 {[%emt 0:00:34]} 14. b3 {[%emt 0:06:57]} Nd6 {[%emt 0:00:28]} 15. a4 {[%emt 0:05:23]} Bg4 {[%emt 0:16:48]} 16. f3 {[%emt 0:05:21]} Bd7 {[%emt 0:00:18]} 17. Ba3 {[%emt 0:00:23]} Nbc8 {[%emt 0:00:03]} 18. Ne4 {[%emt 0:03:06]} f5 {[%emt 0:08:50]} 19. Nc5 {[%emt 0:00:07]} Re8 {[%emt 0:06:44]} 20. Rc1 {[%emt 0:00:58]} Kh8 {[%emt 0:02:55]} 21. Kh1 {[%emt 0:01:15]} Rb8 {[%emt 0:02:36]} 22. Qd2 {[%emt 0:06:01]} Nf7 {[%emt 0:05:44]} 23. f4 {[%emt 0:08:54]} e4 {[%emt 0:01:52]} 24. Bb2 {[%emt 0:01:31]} b6 {[%emt 0:00:57]} 25. Bxg7+ {[%emt 0:02:08]} Kxg7 {[%emt 0:00:04]} 26. Qc3+ {[%emt 0:00:13]} Kg8 {[%emt 0:00:19]} 27. Na6 {[%emt 0:00:58]} Rb7 {[%emt 0:00:20]} 28. Nc7 {[%emt 0:02:22]} Re7 {[%emt 0:04:49]} 29. Nd4 {[%emt 0:00:48]} Nfd6 {[%emt 0:00:25]} 30. Nde6 {[%emt 0:04:28]} Bxe6 {[%emt 0:00:29]} 31. Nxe6 {[%emt 0:00:04]} Qe8 {[%emt 0:01:15]} 32. Qe5 {[%emt 0:01:22]} Rf7 {[%emt 0:01:24]} 33. Rc6 {[%emt 0:00:34]} Rbd7 {[%emt 0:02:07]} 34. Rfc1 {[%emt 0:00:08]} h6 {[%emt 0:00:35]} 35. Bf1 {[%emt 0:00:05]} 1-0

[Event "3rd Memorial Warakomska 2019"]
[Site "Suwalki"]
[Date "2019.08.10"]
[Round "7.14"]
[White "Pavlov, Sergey"]
[Black "Lewtak, Damian"]
[Result "1/2-1/2"]
[ECO "A22"]
[WhiteElo "2486"]
[BlackElo "2354"]
[Annotator "ChessBase"]
[PlyCount "119"]
[EventDate "2019.08.05"]
[EventType "swiss"]
[EventCountry "POL"]
[SourceTitle "playchess.com"]
[Source "ChessBase"]
[SourceQuality "1"]
[TimeControl "40/5400+30:1800+30"]

1. c4 {[%emt 0:00:00]} e5 {[%emt 0:00:00]} 2. Nc3 {[%emt 0:00:01]} Nf6 {[%emt 0:00:12]} 3. e3 {[%emt 0:00:34]} Bb4 {[%emt 0:01:02]} 4. Nge2 {[%emt 0:00:25]} O-O {[%emt 0:01:11]} 5. a3 {[%emt 0:00:38]} Bxc3 {[%emt 0:01:20]} 6. Nxc3 {[%emt 0:00:09]} d5 {[%emt 0:03:38]} 7. cxd5 {[%emt 0:00:36]} Nxd5 {[%emt 0:00:05]} 8. Qc2 {[%emt 0:00:53]} Nc6 {[%emt 0:03:10]} 9. b4 {[%emt 0:01:43]} a6 {[%emt 0:01:22]} 10. Bb2 {[%emt 0:02:36]} Re8 {[%emt 0:01:10]} 11. Bd3 {[%emt 0:07:19]} h6 {[%emt 0:01:09]} 12. Nxd5 {[%emt 0:04:24]} Qxd5 {[%emt 0:00:18]} 13. Bh7+ {[%emt 0:00:46]} Kh8 {[%emt 0:01:17]} 14. Be4 {[%emt 0:00:31]} Qd6 {[%emt 0:05:51]} 15. O-O {[%emt 0:07:31]} f5 {[%emt 0:02:43]} 16. Bxc6 {[%emt 0:10:42]} bxc6 {[%emt 0:00:38]} 17. Rac1 {[%emt 0:01:14]} Bd7 {[%emt 0:00:42]} 18. f4 {[%emt 0:07:24]} exf4 {[%emt 0:00:24]} 19. Rxf4 {[%emt 0:02:37]} Re7 {[%emt 0:17:18]} 20. Bd4 {[%emt 0:09:59]} Qd5 {[%emt 0:05:00]} 21. Qc5 {[%emt 0:06:00]} Qxc5 {[%emt 0:00:05]} 22. Rxc5 {[%emt 0:00:07]} Rb8 {[%emt 0:03:20]} 23. Ra5 {[%emt 0:12:44]} Bc8 {[%emt 0:00:13]} 24. Rc5 {[%emt 0:08:25]} Bd7 {[%emt 0:04:38]} 25. Be5 {[%emt 0:02:45]} Rb7 {[%emt 0:04:53]} 26. a4 {[%emt 0:02:37]} Kg8 {[%emt 0:01:20]} 27. Ra5 {[%emt 0:00:50]} Ra7 {[%emt 0:14:17]} 28. Rc4 {[%emt 0:02:38]} Kf7 {[%emt 0:01:19]} 29. Bd4 {[%emt 0:00:49]} Ra8 {[%emt 0:00:37]} 30. Rcc5 {[%emt 0:01:30]} Ree8 {[%emt 0:03:58]} 31. Kf2 {[%emt 0:00:31]} Reb8 {[%emt 0:01:52]} 32. Bc3 {[%emt 0:00:38]} g6 {[%emt 0:01:22]} 33. Rc4 {[%emt 0:01:28]} Rb6 {[%emt 0:04:31]} 34. Be5 {[%emt 0:01:29]} Rb7 {[%emt 0:05:04]} 35. h3 {[%emt 0:00:53]} g5 {[%emt 0:00:27]} 36. Bc3 {[%emt 0:02:28]} Rb6 {[%emt 0:02:13]} 37. Bd4 {[%emt 0:00:28]} Rbb8 {[%emt 0:01:54]} 38. Bc3 {[%emt 0:00:57]} Rb6 {[%emt 0:00:15]} 39. Re5 {[%emt 0:01:02]} Re8 {[%emt 0:01:03]} 40. Rxe8 {[%emt 0:00:00]} Bxe8 {[%emt 0:00:00]} 41. Be5 {[%emt 0:08:49]} Rb7 {[%emt 0:05:35]} 42. Rd4 {[%emt 0:00:38]} h5 {[%emt 0:03:19]} 43. h4 {[%emt 0:03:45]} gxh4 {[%emt 0:00:42]} 44. Rxh4 {[%emt 0:00:11]} Ke6 {[%emt 0:00:34]} 45. Bc3 {[%emt 0:04:18]} Rb8 {[%emt 0:00:48]} 46. e4 {[%emt 0:06:11]} fxe4 {[%emt 0:01:16]} 47. Rxe4+ {[%emt 0:00:02]} Kd6 {[%emt 0:02:43]} 48. Rd4+ {[%emt 0:04:02]} Ke6 {[%emt 0:01:34]} 49. Rf4 {[%emt 0:00:15]} Bd7 {[%emt 0:04:07]} 50. Rf6+ {[%emt 0:01:08]} Ke7 {[%emt 0:00:23]} 51. Rh6 {[%emt 0:00:22]} Rf8+ {[%emt 0:00:35]} 52. Kg3 {[%emt 0:00:32]} Rf5 {[%emt 0:01:46]} 53. Rh7+ {[%emt 0:00:58]} Kd8 {[%emt 0:01:00]} 54. Bd4 {[%emt 0:02:41]} Be8 {[%emt 0:01:56]} 55. Be3 {[%emt 0:01:02]} Kc8 {[%emt 0:12:24]} 56. Bf4 {[%emt 0:01:11]} Bd7 {[%emt 0:00:50]} 57. d4 {[%emt 0:00:41]} a5 {[%emt 0:00:47]} 58. bxa5 {[%emt 0:01:43]} Rxa5 {[%emt 0:00:12]} 59. Be5 {[%emt 0:00:32]} c5 {[%emt 0:00:27]} 60. dxc5 {[%emt 0:00:43]} 1/2-1/2

[Event "3rd Memorial Warakomska 2019"]
[Site "Suwalki"]
[Date "2019.08.10"]
[Round "7.15"]
[White "Janik, Igor"]
[Black "Licznerski, Lukasz"]
[Result "1-0"]
[ECO "B12"]
[WhiteElo "2495"]
[BlackElo "2328"]
[Annotator "ChessBase"]
[PlyCount "113"]
[EventDate "2019.08.05"]
[EventType "swiss"]
[EventCountry "POL"]
[SourceTitle "playchess.com"]
[Source "ChessBase"]
[SourceQuality "1"]
[TimeControl "40/5400+30:1800+30"]

1. e4 {[%emt 0:00:00]} c6 {[%emt 0:08:35]} 2. d4 {[%emt 0:00:00]} d5 {[%emt 0:00:16]} 3. e5 {[%emt 0:00:00]} Bf5 {[%emt 0:00:08]} 4. Nf3 {[%emt 0:00:00]} e6 {[%emt 0:00:21]} 5. Be2 {[%emt 0:00:00]} Ne7 {[%emt 0:00:33]} 6. O-O {[%emt 0:00:08]} Bg6 {[%emt 0:00:22]} 7. c3 {[%emt 0:00:14]} Nd7 {[%emt 0:01:31]} 8. Nbd2 {[%emt 0:00:35]} c5 {[%emt 0:02:41]} 9. dxc5 {[%emt 0:00:41]} Nxc5 {[%emt 0:01:51]} 10. Nd4 {[%emt 0:00:45]} Nc6 {[%emt 0:02:15]} 11. Bb5 {[%emt 0:00:51]} Rc8 {[%emt 0:08:48]} 12. f4 {[%emt 0:02:50]} a6 {[%emt 0:05:25]} 13. Bxc6+ {[%emt 0:01:43]} bxc6 {[%emt 0:00:02]} 14. g4 {[%emt 0:02:19]} Bd3 {[%emt 0:05:51]} 15. Rf3 {[%emt 0:00:27]} h5 {[%emt 0:00:46]} 16. Rh3 {[%emt 0:00:59]} Be4 {[%emt 0:10:23]} 17. Qe2 {[%emt 0:06:52]} g5 {[%emt 0:30:28]} 18. b4 {[%emt 0:04:55]} Nd3 {[%emt 0:01:49]} 19. Nxe4 {[%emt 0:01:45]} dxe4 {[%emt 0:00:10]} 20. Qxe4 {[%emt 0:00:05]} Nxc1 {[%emt 0:00:44]} 21. Rxc1 {[%emt 0:00:47]} Qd5 {[%emt 0:06:46]} 22. Qxd5 {[%emt 0:01:40]} cxd5 {[%emt 0:00:02]} 23. fxg5 {[%emt 0:00:23]} Rg8 {[%emt 0:03:25]} 24. Rxh5 {[%emt 0:00:51]} Bxb4 {[%emt 0:00:03]} 25. Kf1 {[%emt 0:01:17]} Rxc3 {[%emt 0:02:25]} 26. Rxc3 {[%emt 0:00:56]} Bxc3 {[%emt 0:00:02]} 27. Nf3 {[%emt 0:00:10]} Bb2 {[%emt 0:05:16]} 28. Rh7 {[%emt 0:02:15]} Bc1 {[%emt 0:00:28]} 29. h4 {[%emt 0:00:08]} Bf4 {[%emt 0:00:21]} 30. Ke2 {[%emt 0:00:27]} Ke7 {[%emt 0:00:58]} 31. Kd3 {[%emt 0:01:29]} Ke8 {[%emt 0:00:29]} 32. Kc3 {[%emt 0:04:06]} Ke7 {[%emt 0:00:51]} 33. Kd4 {[%emt 0:00:08]} Kf8 {[%emt 0:01:19]} 34. Ne1 {[%emt 0:03:21]} Bh2 {[%emt 0:00:27]} 35. Nd3 {[%emt 0:01:43]} Bg1+ {[%emt 0:00:14]} 36. Kc3 {[%emt 0:00:01]} Ke7 {[%emt 0:01:17]} 37. Kd2 {[%emt 0:01:17]} Ke8 {[%emt 0:00:37]} 38. Ke2 {[%emt 0:01:42]} Bd4 {[%emt 0:00:26]} 39. Kf3 {[%emt 0:05:56]} Bc3 {[%emt 0:00:23]} 40. Ke3 {[%emt 0:00:00]} Ke7 {[%emt 0:00:00]} 41. a4 {[%emt 0:05:53]} Kf8 {[%emt 0:08:51]} 42. Rh6 {[%emt 0:01:58]} Ke7 {[%emt 0:18:38]} 43. Rf6 {[%emt 0:00:45]} Rh8 {[%emt 0:03:40]} 44. h5 {[%emt 0:00:14]} Rg8 {[%emt 0:00:49]} 45. g6 {[%emt 0:00:35]} fxg6 {[%emt 0:00:11]} 46. Nf4 {[%emt 0:01:14]} gxh5 {[%emt 0:00:34]} 47. Rxe6+ {[%emt 0:00:05]} Kf7 {[%emt 0:00:54]} 48. Rf6+ {[%emt 0:00:13]} Ke8 {[%emt 0:00:16]} 49. Nxd5 {[%emt 0:00:39]} Bxe5 {[%emt 0:01:08]} 50. Re6+ {[%emt 0:00:09]} Kd7 {[%emt 0:00:40]} 51. Rxe5 {[%emt 0:00:10]} hxg4 {[%emt 0:00:07]} 52. Nf6+ {[%emt 0:00:37]} Kd6 {[%emt 0:00:06]} 53. Ra5 {[%emt 0:00:08]} Rh8 {[%emt 0:01:16]} 54. Nxg4 {[%emt 0:00:56]} Kc7 {[%emt 0:00:30]} 55. Kd3 {[%emt 0:01:47]} Kb6 {[%emt 0:00:30]} 56. Rg5 {[%emt 0:00:11]} Rc8 {[%emt 0:00:31]} 57. Ne3 {[%emt 0:00:18]} 1-0

[Event "3rd Memorial Warakomska 2019"]
[Site "Suwalki"]
[Date "2019.08.10"]
[Round "7.17"]
[White "Sharankov, Grigory"]
[Black "Barski, Radoslaw"]
[Result "1-0"]
[ECO "E91"]
[WhiteElo "2221"]
[BlackElo "2468"]
[Annotator "ChessBase"]
[PlyCount "85"]
[EventDate "2019.08.05"]
[EventType "swiss"]
[EventCountry "POL"]
[SourceTitle "playchess.com"]
[Source "ChessBase"]
[SourceQuality "1"]
[TimeControl "40/5400+30:1800+30"]

1. d4 {[%emt 0:00:00]} Nf6 {[%emt 0:01:34]} 2. c4 {[%emt 0:00:00]} g6 {[%emt 0:00:09]} 3. Nc3 {[%emt 0:00:00]} Bg7 {[%emt 0:00:06]} 4. e4 {[%emt 0:00:00]} d6 {[%emt 0:00:05]} 5. Nf3 {[%emt 0:00:00]} O-O {[%emt 0:00:10]} 6. Be2 {[%emt 0:00:02]} Nbd7 {[%emt 0:01:26]} 7. O-O {[%emt 0:00:11]} e5 {[%emt 0:00:02]} 8. Qc2 {[%emt 0:00:07]} c6 {[%emt 0:03:57]} 9. Rd1 {[%emt 0:02:51]} Qe7 {[%emt 0:00:42]} 10. Rb1 {[%emt 0:06:16]} a5 {[%emt 0:09:20]} 11. dxe5 {[%emt 0:03:33]} dxe5 {[%emt 0:03:26]} 12. Na4 {[%emt 0:00:37]} Nc5 {[%emt 0:10:01]} 13. Nxc5 {[%emt 0:05:16]} Qxc5 {[%emt 0:00:02]} 14. h3 {[%emt 0:00:44]} Qe7 {[%emt 0:02:51]} 15. c5 {[%emt 0:05:07]} h6 {[%emt 0:25:45]} 16. Be3 {[%emt 0:02:13]} Be6 {[%emt 0:01:17]} 17. b3 {[%emt 0:06:51]} Ne8 {[%emt 0:02:30]} 18. Bc4 {[%emt 0:12:06]} Nc7 {[%emt 0:01:46]} 19. Rd6 {[%emt 0:02:03]} Rfd8 {[%emt 0:20:31]} 20. Qd2 {[%emt 0:09:59]} g5 {[%emt 0:02:49]} 21. Rd1 {[%emt 0:01:55]} Rdb8 {[%emt 0:02:06]} 22. Nh2 {[%emt 0:05:20]} Ne8 {[%emt 0:01:19]} 23. Rd3 {[%emt 0:02:45]} a4 {[%emt 0:00:46]} 24. Bxe6 {[%emt 0:01:59]} Qxe6 {[%emt 0:00:07]} 25. b4 {[%emt 0:00:04]} a3 {[%emt 0:02:30]} 26. Nf1 {[%emt 0:03:26]} Qc4 {[%emt 0:04:20]} 27. Ng3 {[%emt 0:00:32]} Nc7 {[%emt 0:00:10]} 28. Rc1 {[%emt 0:02:10]} Qa6 {[%emt 0:00:48]} 29. Nf5 {[%emt 0:09:52]} Ne6 {[%emt 0:00:12]} 30. h4 {[%emt 0:05:06]} Rd8 {[%emt 0:00:32]} 31. Rd6 {[%emt 0:00:01]} Bf8 {[%emt 0:02:40]} 32. hxg5 {[%emt 0:01:23]} Bxd6 {[%emt 0:00:20]} 33. Nxh6+ {[%emt 0:01:20]} Kf8 {[%emt 0:00:43]} 34. cxd6 {[%emt 0:00:23]} c5 {[%emt 0:01:16]} 35. Qd5 {[%emt 0:02:20]} Qxd6 {[%emt 0:00:20]} 36. Bxc5 {[%emt 0:00:55]} Qxc5 {[%emt 0:00:09]} 37. bxc5 {[%emt 0:00:49]} Rxd5 {[%emt 0:00:07]} 38. exd5 {[%emt 0:00:02]} Nf4 {[%emt 0:00:18]} 39. Rb1 {[%emt 0:00:27]} Ra7 {[%emt 0:01:23]} 40. Nf5 {[%emt 0:00:00]} Ne2+ {[%emt 0:00:00]} 41. Kh2 {[%emt 0:03:27]} Nc3 {[%emt 0:02:45]} 42. Rb3 {[%emt 0:00:53]} Nxa2 {[%emt 0:01:17]} 43. c6 {[%emt 0:00:05]} 1-0

[Event "3rd Memorial Warakomska 2019"]
[Site "Suwalki"]
[Date "2019.08.10"]
[Round "7.20"]
[White "Kosakowski, Jakub"]
[Black "Suliborski, Jakub"]
[Result "1-0"]
[ECO "C00"]
[WhiteElo "2394"]
[BlackElo "2131"]
[Annotator "NA"]
[PlyCount "85"]
[EventDate "2019.08.05"]
[EventType "swiss"]
[EventCountry "POL"]
[SourceTitle "playchess.com"]
[Source "ChessBase"]
[SourceQuality "1"]
[TimeControl "40/5400+30:1800+30"]

1. e4 {[%emt 0:00:00]} e6 {[%emt 0:00:00]} 2. d4 {[%emt 0:00:48]} d5 {[%emt 0:00:03]} 3. Bd3 {[%emt 0:01:08]} dxe4 {[%emt 0:04:05]} 4. Bxe4 {[%emt 0:00:08]} Nf6 {[%emt 0:00:04]} 5. Bf3 {[%emt 0:00:30]} c5 {[%emt 0:01:00]} 6. Ne2 {[%emt 0:00:30]} Nc6 {[%emt 0:00:35]} 7. Be3 {[%emt 0:00:19]} cxd4 {[%emt 0:07:58]} 8. Nxd4 {[%emt 0:00:28]} Nb4 {[%emt 0:03:53]} 9. O-O {[%emt 0:08:41]} Nbd5 {[%emt 0:04:24]} 10. Bg5 {[%emt 0:03:20]} Be7 {[%emt 0:01:49]} 11. c4 {[%emt 0:00:33]} Nb6 {[%emt 0:00:06]} 12. Nc3 {[%emt 0:05:19]} O-O {[%emt 0:00:51]} 13. b3 {[%emt 0:00:15]} Nfd5 {[%emt 0:07:56]} 14. Bxe7 {[%emt 0:02:53]} Nxe7 {[%emt 0:00:04]} 15. Ndb5 {[%emt 0:02:05]} Qxd1 {[%emt 0:05:00]} 16. Rfxd1 {[%emt 0:01:32]} a6 {[%emt 0:01:51]} 17. Nd6 {[%emt 0:00:54]} Nc6 {[%emt 0:00:11]} 18. c5 {[%emt 0:00:20]} Nd5 {[%emt 0:04:27]} 19. Nxd5 {[%emt 0:01:17]} exd5 {[%emt 0:00:05]} 20. Bxd5 {[%emt 0:00:07]} Rb8 {[%emt 0:01:23]} 21. Bxc6 {[%emt 0:14:36]} bxc6 {[%emt 0:00:05]} 22. Rd4 {[%emt 0:00:07]} Be6 {[%emt 0:00:52]} 23. Re1 {[%emt 0:00:36]} a5 {[%emt 0:01:02]} 24. Ra4 {[%emt 0:01:41]} Ra8 {[%emt 0:00:26]} 25. Nb7 {[%emt 0:00:37]} Rfb8 {[%emt 0:00:51]} 26. Rxa5 {[%emt 0:00:14]} Rxa5 {[%emt 0:00:19]} 27. Nxa5 {[%emt 0:00:05]} Bd5 {[%emt 0:00:13]} 28. b4 {[%emt 0:01:14]} Kf8 {[%emt 0:00:40]} 29. a3 {[%emt 0:00:04]} Ra8 {[%emt 0:00:47]} 30. f3 {[%emt 0:00:07]} Ra7 {[%emt 0:00:59]} 31. Kf2 {[%emt 0:00:44]} h5 {[%emt 0:00:23]} 32. h4 {[%emt 0:13:28]} f6 {[%emt 0:01:30]} 33. Ke3 {[%emt 0:00:54]} Kf7 {[%emt 0:01:02]} 34. Kd4 {[%emt 0:00:20]} g5 {[%emt 0:01:14]} 35. hxg5 {[%emt 0:00:19]} fxg5 {[%emt 0:00:05]} 36. Re3 {[%emt 0:01:13]} Rd7 {[%emt 0:00:17]} 37. Nc4 {[%emt 0:03:25]} Bxc4+ {[%emt 0:01:34]} 38. Kxc4 {[%emt 0:00:04]} Rd2 {[%emt 0:00:06]} 39. a4 {[%emt 0:03:30]} Rxg2 {[%emt 0:01:02]} 40. b5 {[%emt 0:00:00]} Ra2 {[%emt 0:00:00]} 41. bxc6 {[%emt 0:00:45]} Rxa4+ {[%emt 0:01:44]} 42. Kb5 {[%emt 0:00:06]} Ra8 {[%emt 0:00:06]} 43. c7 {[%emt 0:00:06]} 1-0

[Event "3rd Memorial Warakomska 2019"]
[Site "Suwalki"]
[Date "2019.08.10"]
[Round "7.21"]
[White "Shpanko, Nadiia"]
[Black "Skawinski, Arkadiusz"]
[Result "1/2-1/2"]
[ECO "A14"]
[WhiteElo "2132"]
[BlackElo "2398"]
[Annotator "NA"]
[PlyCount "34"]
[EventDate "2019.08.05"]
[EventType "swiss"]
[EventCountry "POL"]
[SourceTitle "playchess.com"]
[Source "ChessBase"]
[SourceQuality "1"]
[TimeControl "40/5400+30:1800+30"]

1. c4 {[%emt 0:00:00]} e6 {[%emt 0:01:49]} 2. g3 {[%emt 0:00:00]} d5 {[%emt 0:00:04]} 3. Bg2 {[%emt 0:00:00]} Nf6 {[%emt 0:00:03]} 4. Nf3 {[%emt 0:00:10]} Be7 {[%emt 0:00:05]} 5. O-O {[%emt 0:00:16]} O-O {[%emt 0:00:04]} 6. d4 {[%emt 0:00:19]} dxc4 {[%emt 0:00:25]} 7. Ne5 {[%emt 0:00:16]} Nc6 {[%emt 0:00:05]} 8. Bxc6 {[%emt 0:00:11]} bxc6 {[%emt 0:00:05]} 9. Nxc6 {[%emt 0:00:05]} Qe8 {[%emt 0:00:05]} 10. Nxe7+ {[%emt 0:00:07]} Qxe7 {[%emt 0:00:03]} 11. Qa4 {[%emt 0:00:07]} e5 {[%emt 0:00:57]} 12. dxe5 Qxe5 {[%emt 0:02:43]} 13. Qxc4 {[%emt 0:01:31]} Be6 {[%emt 0:07:01]} 14. Qc2 {[%emt 0:00:12]} Rfe8 {[%emt 0:05:16]} 15. Re1 {[%emt 0:05:41]} Bf5 {[%emt 0:07:18]} 16. Qc4 {[%emt 0:00:34]} Be6 {[%emt 0:02:02]} 17. Qc2 {[%emt 0:02:25]} Bf5 {[%emt 0:00:21]} 1/2-1/2

[Event "3rd Memorial Warakomska 2019"]
[Site "Suwalki"]
[Date "2019.08.10"]
[Round "7.22"]
[White "Kumala, Aleksander"]
[Black "Punin, Andrii"]
[Result "0-1"]
[ECO "B01"]
[WhiteElo "2184"]
[BlackElo "2305"]
[Annotator "NA"]
[PlyCount "60"]
[EventDate "2019.08.05"]
[EventType "swiss"]
[EventCountry "POL"]
[SourceTitle "playchess.com"]
[Source "ChessBase"]
[SourceQuality "1"]
[TimeControl "40/5400+30:1800+30"]

1. e4 {[%emt 0:01:14]} d5 {[%emt 0:00:00]} 2. exd5 {[%emt 0:00:08]} Qxd5 {[%emt 0:00:00]} 3. Nc3 {[%emt 0:00:07]} Qd6 {[%emt 0:00:00]} 4. Nf3 {[%emt 0:09:54]} Nf6 {[%emt 0:00:57]} 5. d4 {[%emt 0:00:47]} c6 {[%emt 0:00:05]} 6. Bc4 {[%emt 0:05:09]} Bg4 {[%emt 0:00:38]} 7. d5 {[%emt 0:02:29]} b5 {[%emt 0:10:03]} 8. Bb3 {[%emt 0:04:33]} b4 {[%emt 0:00:55]} 9. Na4 {[%emt 0:00:36]} cxd5 {[%emt 0:01:39]} 10. Be3 {[%emt 0:04:39]} Nbd7 {[%emt 0:01:59]} 11. h3 {[%emt 0:02:41]} Bxf3 {[%emt 0:02:51]} 12. Qxf3 {[%emt 0:00:05]} e6 {[%emt 0:00:35]} 13. g4 {[%emt 0:07:59]} Be7 {[%emt 0:03:04]} 14. g5 {[%emt 0:03:11]} Ne4 {[%emt 0:00:08]} 15. h4 {[%emt 0:00:06]} O-O {[%emt 0:01:12]} 16. Qg2 {[%emt 0:04:04]} Ndc5 {[%emt 0:04:37]} 17. h5 {[%emt 0:02:46]} Nxa4 {[%emt 0:04:12]} 18. Bxa4 {[%emt 0:02:09]} Qe5 {[%emt 0:00:31]} 19. f4 {[%emt 0:05:23]} Qxb2 {[%emt 0:00:31]} 20. O-O {[%emt 0:00:44]} Bc5 {[%emt 0:00:25]} 21. Bxc5 {[%emt 0:01:00]} Nxc5 {[%emt 0:00:08]} 22. Bb5 {[%emt 0:02:42]} Rab8 {[%emt 0:04:32]} 23. Be2 {[%emt 0:00:16]} Rbc8 {[%emt 0:00:37]} 24. Rab1 {[%emt 0:01:24]} Qxc2 {[%emt 0:04:37]} 25. Rxb4 {[%emt 0:00:19]} Qxa2 {[%emt 0:03:08]} 26. f5 {[%emt 0:00:25]} Qd2 {[%emt 0:03:47]} 27. Rh4 {[%emt 0:00:33]} Ne4 {[%emt 0:01:21]} 28. f6 {[%emt 0:03:50]} Rc1 {[%emt 0:01:59]} 29. fxg7 {[%emt 0:02:29]} Rxf1+ {[%emt 0:01:30]} 30. Qxf1 {[%emt 0:00:12]} Qe3+ {[%emt 0:00:14]} 0-1

[Event "3rd Memorial Warakomska 2019"]
[Site "Suwalki"]
[Date "2019.08.10"]
[Round "7.23"]
[White "Zylka, Stanislaw"]
[Black "Sernecki, Franciszek"]
[Result "1-0"]
[ECO "A13"]
[WhiteElo "2308"]
[BlackElo "2275"]
[Annotator "NA"]
[PlyCount "79"]
[EventDate "2019.08.05"]
[EventType "swiss"]
[EventCountry "POL"]
[SourceTitle "playchess.com"]
[Source "ChessBase"]
[SourceQuality "1"]
[TimeControl "40/5400+30:1800+30"]

1. c4 {[%emt 0:00:00]} e6 {[%emt 0:01:43]} 2. g3 {[%emt 0:00:13]} Nf6 {[%emt 0:00:37]} 3. Bg2 {[%emt 0:00:12]} d5 {[%emt 0:00:22]} 4. Nf3 {[%emt 0:00:15]} dxc4 {[%emt 0:01:00]} 5. Qa4+ {[%emt 0:01:56]} Bd7 {[%emt 0:02:55]} 6. Qxc4 {[%emt 0:00:10]} c5 {[%emt 0:00:15]} 7. Ne5 {[%emt 0:01:36]} Qc8 {[%emt 0:01:00]} 8. O-O {[%emt 0:01:00]} Bd6 {[%emt 0:13:54]} 9. Nxd7 {[%emt 0:00:37]} Nbxd7 {[%emt 0:00:51]} 10. Nc3 {[%emt 0:01:02]} O-O {[%emt 0:01:47]} 11. d3 {[%emt 0:00:37]} a6 {[%emt 0:09:05]} 12. a4 {[%emt 0:00:29]} Ne5 {[%emt 0:05:50]} 13. Qb3 {[%emt 0:06:07]} Nc6 {[%emt 0:06:25]} 14. Bg5 {[%emt 0:04:37]} Nd7 {[%emt 0:07:23]} 15. a5 {[%emt 0:06:32]} Qc7 {[%emt 0:04:44]} 16. Qa4 {[%emt 0:01:10]} Rfc8 {[%emt 0:03:23]} 17. Rfc1 {[%emt 0:02:44]} b5 {[%emt 0:02:23]} 18. axb6 {[%emt 0:00:20]} Nxb6 {[%emt 0:01:44]} 19. Qh4 {[%emt 0:01:01]} h6 {[%emt 0:02:26]} 20. Be3 {[%emt 0:00:43]} Qe7 {[%emt 0:05:04]} 21. Qh5 {[%emt 0:26:47]} Ra7 {[%emt 0:04:54]} 22. Ne4 {[%emt 0:02:00]} Nd4 {[%emt 0:01:16]} 23. b4 {[%emt 0:01:11]} g6 {[%emt 0:07:18]} 24. Qxh6 {[%emt 0:01:41]} Nf5 {[%emt 0:01:52]} 25. bxc5 {[%emt 0:09:13]} Nxh6 {[%emt 0:06:05]} 26. cxb6 {[%emt 0:00:28]} Rxc1+ {[%emt 0:01:37]} 27. Rxc1 {[%emt 0:00:09]} Rd7 {[%emt 0:03:11]} 28. Bg5 {[%emt 0:15:47]} f6 {[%emt 0:00:29]} 29. Nxf6+ {[%emt 0:02:44]} Kf7 {[%emt 0:01:31]} 30. Rc8 {[%emt 0:05:58]} Be5 {[%emt 0:02:48]} 31. Nxd7 {[%emt 0:00:23]} Qxd7 {[%emt 0:00:42]} 32. b7 {[%emt 0:03:18]} Ng4 {[%emt 0:00:18]} 33. h3 {[%emt 0:02:00]} Nxf2 {[%emt 0:01:04]} 34. Kxf2 {[%emt 0:01:25]} Qd4+ {[%emt 0:00:03]} 35. Be3 {[%emt 0:01:06]} Qb2 {[%emt 0:00:55]} 36. Bf3 {[%emt 0:01:23]} a5 {[%emt 0:00:33]} 37. Bf4 {[%emt 0:00:25]} Bd4+ {[%emt 0:00:07]} 38. Kg2 {[%emt 0:00:08]} Ba7 {[%emt 0:00:28]} 39. Ra8 {[%emt 0:00:13]} Qd4 {[%emt 0:00:23]} 40. Rxa7 {[%emt 0:00:00]} 1-0

[Event "3rd Memorial Warakomska 2019"]
[Site "Suwalki"]
[Date "2019.08.10"]
[Round "7.24"]
[White "Kulon, Klaudia"]
[Black "Szadkowski, Kamil"]
[Result "1/2-1/2"]
[ECO "A36"]
[WhiteElo "2331"]
[BlackElo "2245"]
[Annotator "NA"]
[PlyCount "28"]
[EventDate "2019.08.05"]
[EventType "swiss"]
[EventCountry "POL"]
[SourceTitle "playchess.com"]
[Source "ChessBase"]
[SourceQuality "1"]
[TimeControl "40/5400+30:1800+30"]

1. c4 {[%emt 0:08:32]} c5 {[%emt 0:00:00]} 2. g3 {[%emt 0:00:06]} g6 {[%emt 0:00:23]} 3. Bg2 {[%emt 0:00:05]} Bg7 {[%emt 0:00:07]} 4. Nc3 {[%emt 0:00:04]} Nc6 {[%emt 0:01:06]} 5. e3 {[%emt 0:00:05]} e6 {[%emt 0:00:55]} 6. Nge2 {[%emt 0:01:05]} Nge7 {[%emt 0:00:19]} 7. d4 {[%emt 0:01:15]} cxd4 {[%emt 0:00:44]} 8. exd4 {[%emt 0:00:02]} d5 {[%emt 0:00:59]} 9. cxd5 {[%emt 0:01:00]} Nxd5 {[%emt 0:01:51]} 10. Nxd5 {[%emt 0:00:26]} exd5 {[%emt 0:00:05]} 11. Be3 {[%emt 0:03:37]} O-O {[%emt 0:02:05]} 12. Nc3 {[%emt 0:01:52]} Be6 {[%emt 0:02:22]} 13. Qd2 {[%emt 0:03:07]} Qd7 {[%emt 0:19:09]} 14. O-O {[%emt 0:07:53]} Bh3 {[%emt 0:04:59]} 1/2-1/2